bitfinex/quotes_SOLUSD_20241110
["timestamp","ask_amount","ask_price","bid_price","bid_amount"]
[1731222145802,10.8937462,205.79,205.72,10.8937462]
[1731222146015,10.8937462,205.78,205.71,10.9937462]
[1731222146196,10.8937462,205.79,205.72,10.8937462]
[1731222146889,10.8937462,205.79,205.71,0.1]
[1731222146890,0.12549,205.83,205.71,10.8937462]
[1731222147190,10.8937462,205.78,205.71,10.8937462]
[1731222147399,10.8937462,205.79,205.73,4.855]
[1731222147799,10.8937462,205.79,205.72,10.8937462]
[1731222148392,10.8937462,205.79,205.73,4.855]
[1731222148802,10.8937462,205.79,205.72,10.8937462]
[1731222149002,10.8937462,205.78,205.71,10.8937462]
[1731222149226,10.8937462,205.78,205.7,30.32271527]
[1731222149412,10.8937462,205.78,205.71,15.7487462]
[1731222152097,10.8937462,205.79,205.73,4.855]
[1731222152927,16.599,205.85,205.73,10.8937462]
[1731222153095,10.8937462,205.81,205.74,15.7487462]
[1731222153420,10.8937462,205.83,205.76,10.8937462]
[1731222153597,10.8937462,205.84,205.77,10.8937462]
[1731222153803,10.8937462,205.85,205.78,10.8937462]
[1731222154009,60.1739848,205.9,205.8,10.8937462]
[1731222154010,16.599,205.9,205.8,10.8937462]
[1731222154319,10.8937462,205.88,205.81,10.8937462]
[1731222154505,10.8937462,205.87,205.8,10.8937462]
[1731222155010,10.8937462,205.87,205.81,4.855]
[1731222155188,10.8937462,205.88,205.81,10.8937462]
[1731222155393,10.8937462,205.89,205.82,10.8937462]
[1731222155595,1.5229462,205.89,205.82,10.8937462]
[1731222156109,1.5229462,205.89,205.83,4.855]
[1731222156312,10.8937462,205.88,205.84,4.855]
[1731222157217,10.8937462,205.88,205.82,4.855]
[1731222157419,16.599,205.95,205.81,10.8937462]
[1731222157420,10.8937462,205.87,205.81,4.855]
[1731222158819,10.8937462,205.84,205.79,15.1713]
[1731222159117,10.8937462,205.82,205.78,4.132167]
[1731222159316,10.8937462,205.81,205.74,15.6509]
[1731222159509,10.8937462,205.8,205.74,26.5446462]
[1731222159701,10.8937462,205.81,205.75,4.855]
[1731222159905,10.8937462,205.81,205.75,15.7487462]
[1731222160112,10.8937462,205.81,205.75,4.855]
[1731222160713,10.8937462,205.8,205.75,4.855]
[1731222160914,10.8937462,205.8,205.74,21.5546462]
[1731222161098,0.12549,205.85,205.73,6.5349]
[1731222161304,0.12549,205.85,205.73,17.4286462]
[1731222161509,0.12549,205.85,205.75,10.8937462]
[1731222161709,10.8937462,205.82,205.75,10.8937462]
[1731222162015,0.12549,205.85,205.73,10.68950158]
[1731222162316,10.8937462,205.81,205.74,10.8937462]
[1731222162913,10.8937462,205.81,205.76,4.855]
[1731222163798,10.8937462,205.83,205.76,10.8937462]
[1731222164023,0.12549,205.9,205.76,10.8937462]
[1731222164199,10.8937462,205.83,205.76,10.8937462]
[1731222164515,43.5749848,205.9,205.77,4.855]
[1731222164714,10.8937462,205.83,205.77,4.855]
[1731222165916,10.8937462,205.84,205.78,4.855]
[1731222166105,0.12549,205.89,205.78,4.855]
[1731222166425,10.8937462,205.84,205.78,4.855]
[1731222167424,0.12549,205.89,205.78,4.855]
[1731222167425,10.8937462,205.83,205.78,4.855]
[1731222167718,10.8937462,205.83,205.76,10.8937462]
[1731222167906,0.12549,205.89,205.74,15.6509]
[1731222167907,10.8937462,205.81,205.74,26.5446462]
[1731222168517,10.8937462,205.82,205.75,10.8937462]
[1731222168711,10.8937462,205.82,205.74,15.6509]
[1731222168712,10.8937462,205.81,205.74,15.6509]
[1731222168899,10.8937462,205.81,205.74,26.5446462]
[1731222169625,43.0596748,205.9,205.75,4.855]
[1731222169938,47.93652248,205.9,205.74,15.6509]
[1731222170105,10.8937462,205.79,205.74,15.6509]
[1731222170309,10.8937462,205.8,205.74,15.6509]
[1731222170501,10.8937462,205.8,205.73,4.15460158]
[1731222170705,10.8937462,205.8,205.73,10.8937462]
[1731222171117,10.8937462,205.8,205.74,10.8937462]
[1731222171408,10.8937462,205.8,205.73,10.8937462]
[1731222171607,10.8937462,205.79,205.71,0.02916585]
[1731222171822,10.8937462,205.78,205.71,10.92291205]
[1731222172014,10.8937462,205.78,205.71,10.8937462]
[1731222172213,0.12549,205.85,205.72,10.8937462]
[1731222172424,10.8937462,205.79,205.68,0.02916585]
[1731222172726,10.8937462,205.77,205.71,4.855]
[1731222172901,10.8937462,205.77,205.7,10.8937462]
[1731222173503,10.8937462,205.76,205.69,10.8937462]
[1731222173709,10.8937462,205.75,205.69,4.855]
[1731222174324,10.8937462,205.75,205.68,10.8937462]
[1731222174827,10.8937462,205.75,205.69,4.855]
[1731222175017,10.8937462,205.76,205.7,4.855]
[1731222176025,10.8937462,205.74,205.68,4.855]
[1731222176221,10.8937462,205.74,205.67,26.71351673]
[1731222176812,10.8937462,205.72,205.67,15.81977053]
[1731222177015,10.8937462,205.72,205.67,11.58934809]
[1731222177208,10.8937462,205.72,205.67,6.5264]
[1731222177727,10.8937462,205.72,205.65,5.91021008]
[1731222177930,10.8937462,205.71,205.66,4.855]
[1731222178230,10.8937462,205.72,205.65,20.23278643]
[1731222178417,0.12549,205.79,205.65,20.23278643]
[1731222178418,10.8937462,205.7,205.65,9.33904023]
[1731222178614,10.8937462,205.71,205.65,9.33904023]
[1731222178816,10.8937462,205.71,205.66,4.855]
[1731222179033,0.1,205.95,205.81,22.098]
[1731222179343,10.8937462,205.86,205.85,0.844]
[1731222180526,0.22549,205.93,205.85,0.844]
[1731222180833,10.8937462,205.86,205.85,0.844]
[1731222181309,16.97439078,205.86,205.85,0.844]
[1731222181516,17.09988078,205.86,205.85,0.844]
[1731222183531,16.97439078,205.86,205.85,0.844]
[1731222185232,16.97439078,205.86,205.76,6.5583]
[1731222185431,16.97439078,205.81,205.76,6.5583]
[1731222185617,16.97439078,205.79,205.76,6.5583]
[1731222185930,16.97439078,205.78,205.76,6.5583]
[1731222186751,16.97439078,205.78,205.75,4.26712078]
[1731222186931,16.97439078,205.76,205.71,15.5397]
[1731222187325,16.97439078,205.76,205.7,6.5583]
[1731222187838,16.97439078,205.75,205.7,6.5583]
[1731222188132,16.97439078,205.76,205.7,6.5583]
[1731222188638,16.97439078,205.75,205.7,6.5583]
[1731222188816,16.97439078,205.75,205.7,10.75391126]
[1731222189527,16.97439078,205.8,205.7,10.75391126]
[1731222189528,16.97439078,205.74,205.7,10.75391126]
[1731222190442,16.97439078,205.74,205.67,16.97439078]
[1731222190733,16.97439078,205.72,205.66,20.60562836]
[1731222191125,16.97439078,205.72,205.66,15.5397]
[1731222191434,0.32549,205.79,205.66,32.51409078]
[1731222191729,16.97439078,205.73,205.66,32.51409078]
[1731222192842,16.97439078,205.72,205.66,15.5397]
[1731222194425,0.22549,205.79,205.66,15.5397]
[1731222194621,16.97439078,205.73,205.66,32.51409078]
[1731222195629,16.97439078,205.73,205.67,16.97439078]
[1731222195838,16.97439078,205.72,205.66,32.51409078]
[1731222196028,16.97439078,205.72,205.66,15.5397]
[1731222197323,0.22549,205.79,205.66,15.5397]
[1731222197527,16.97439078,205.72,205.66,15.5397]
[1731222197736,16.97439078,205.69,205.65,15.79907562]
[1731222197928,16.97439078,205.67,205.65,6.5583]
[1731222198134,0.12549,205.75,205.65,6.5583]
[1731222198135,16.97439078,205.68,205.65,6.5583]
[1731222198543,16.97439078,205.69,205.65,6.5583]
[1731222199832,16.97439078,205.66,205.61,5.06777731]
[1731222200045,16.97439078,205.7,205.61,5.06777731]
[1731222200046,16.97439078,205.64,205.61,5.06777731]
[1731222200230,16.97439078,205.66,205.6,6.1031]
[1731222201149,16.97439078,205.65,205.6,6.1031]
[1731222201334,16.97439078,205.64,205.6,6.1031]
[1731222201773,16.97439078,205.65,205.6,6.1031]
[1731222202435,16.97439078,205.67,205.61,16.97439078]
[1731222202641,16.97439078,205.68,205.61,16.97439078]
[1731222204148,16.97439078,205.67,205.61,16.97439078]
[1731222204555,16.97439078,205.69,205.62,16.97439078]
[1731222205357,16.97439078,205.68,205.61,16.97439078]
[1731222205845,16.97439078,205.67,205.6,23.07749078]
[1731222207238,16.97439078,205.66,205.6,6.1031]
[1731222209448,16.97439078,205.63,205.6,6.1031]
[1731222209951,16.97439078,205.7,205.6,6.1031]
[1731222209952,16.97439078,205.61,205.6,6.1031]
[1731222210163,16.97439078,205.62,205.56,33.44189078]
[1731222210341,0.12549,205.69,205.56,20.6353057]
[1731222210543,16.97439078,205.62,205.56,20.6353057]
[1731222210942,16.97439078,205.61,205.56,20.6353057]
[1731222211357,10.88688815,205.61,205.56,20.6353057]
[1731222211548,10.88688815,205.62,205.56,20.6353057]
[1731222212148,10.88688815,205.62,205.56,31.52219385]
[1731222212344,0.12549,205.69,205.57,10.88688815]
[1731222212651,0.22549,205.69,205.56,20.6353057]
[1731222212964,10.88688815,205.62,205.56,31.52219385]
[1731222213257,16.1193,205.72,205.59,10.88688815]
[1731222213449,16.1193,205.72,205.61,10.88688815]
[1731222213650,0.1,205.76,205.61,10.88688815]
[1731222213651,10.88688815,205.67,205.61,10.88688815]
[1731222213857,16.3193,205.78,205.62,10.88688815]
[1731222214049,10.88688815,205.68,205.63,6.1031]
[1731222214245,16.3193,205.78,205.63,6.1031]
[1731222214440,10.88688815,205.68,205.63,6.1031]
[1731222215449,17.00023274,205.68,205.63,6.1031]
[1731222215654,17.00023274,205.64,205.59,6.1031]
[1731222215854,17.00023274,205.65,205.59,6.1031]
[1731222216249,17.00023274,205.61,205.56,20.6353057]
[1731222216567,16.24479,205.69,205.56,20.6353057]
[1731222216568,17.00023274,205.62,205.56,20.6353057]
[1731222217772,17.00023274,205.61,205.56,20.6353057]
[1731222218959,16.24479,205.69,205.56,37.63553844]
[1731222219257,17.00023274,205.63,205.56,37.63553844]
[1731222220464,15.1522,205.74,205.6,17.00023274]
[1731222220656,17.00023274,205.68,205.62,6.1234]
[1731222220964,0.12549,205.73,205.62,23.12363274]
[1731222221165,17.00023274,205.66,205.62,6.1234]
[1731222221373,0.12549,205.73,205.62,6.1234]
[1731222221374,17.00023274,205.67,205.62,6.1234]
[1731222221669,17.00023274,205.68,205.62,6.1234]
[1731222221853,17.00023274,205.66,205.62,6.1234]
[1731222222466,17.00023274,205.67,205.62,6.1234]
[1731222225070,17.00023274,205.67,205.62,10.26839214]
[1731222225475,17.00023274,205.68,205.62,10.26839214]
[1731222225851,17.00023274,205.67,205.62,10.26839214]
[1731222226056,17.00023274,205.66,205.62,10.26839214]
[1731222226256,17.00023274,205.67,205.62,10.26839214]
[1731222229060,17.00023274,205.66,205.62,10.26839214]
[1731222231370,0.12549,205.73,205.63,4.8631]
[1731222231557,17.00023274,205.67,205.63,4.8631]
[1731222234178,17.00023274,205.66,205.63,4.8631]
[1731222234675,17.00023274,205.65,205.63,4.8631]
[1731222235457,10.88319942,205.65,205.63,4.8631]
[1731222236877,10.88319942,205.64,205.63,4.8631]
[1731222238379,43.53279768,205.7,205.63,4.8631]
[1731222238581,0.1,205.75,205.59,20.45775476]
[1731222238764,10.88319942,205.66,205.59,10.88319942]
[1731222239665,10.88319942,205.65,205.58,5.06791665]
[1731222239861,10.88319942,205.65,205.58,15.95111607]
[1731222240573,0.12549,205.73,205.58,15.95111607]
[1731222240766,10.88319942,205.65,205.58,15.95111607]
[1731222240964,10.88319942,205.66,205.59,10.88319942]
[1731222241574,10.88319942,205.65,205.58,15.95111607]
[1731222241886,10.88319942,205.65,205.58,20.22196373]
[1731222244491,10.88319942,205.65,205.58,9.33876431]
[1731222245288,10.88319942,205.65,205.58,20.22196373]
[1731222247081,15.1551,205.79,205.64,26.84429942]
[1731222247296,10.88319942,205.7,205.64,15.9611]
[1731222247475,0.12549,205.69,205.58,4.27084766]
[1731222247782,15.1551,205.72,205.58,5.0686948]
[1731222247965,10.88319942,205.68,205.6,10.88319942]
[1731222248165,15.1551,205.77,205.61,17.17519942]
[1731222248387,10.88319942,205.69,205.63,15.9611]
[1731222248768,10.88319942,205.68,205.63,15.9611]
[1731222249401,10.88319942,205.67,205.63,15.9611]
[1731222250269,0.12549,205.76,205.63,15.9611]
[1731222250472,10.88319942,205.69,205.63,15.9611]
[1731222251571,10.88319942,205.64,205.63,15.9611]
[1731222251772,10.88319942,205.64,205.61,6.292]
[1731222252483,10.88319942,205.65,205.61,6.292]
[1731222252693,10.88319942,205.64,205.61,6.292]
[1731222253280,0.1,205.78,205.61,17.17519942]
[1731222253506,10.88319942,205.68,205.61,17.17519942]
[1731222253984,10.88319942,205.67,205.61,6.292]
[1731222254687,10.88319942,205.68,205.61,17.17519942]
[1731222255195,10.88319942,205.67,205.61,6.292]
[1731222256697,10.88319942,205.65,205.61,6.292]
[1731222257687,10.88319942,205.64,205.61,6.292]
[1731222258687,10.88319942,205.67,205.61,6.292]
[1731222259082,15.3551,205.77,205.61,6.292]
[1731222259083,15.2551,205.77,205.61,6.292]
[1731222259287,10.88319942,205.68,205.61,17.17519942]
[1731222260180,10.88319942,205.66,205.61,6.292]
[1731222260387,10.88319942,205.65,205.61,6.292]
[1731222262984,10.88319942,205.64,205.61,6.292]
[1731222263578,10.88319942,205.63,205.61,6.292]
[1731222263780,10.88319942,205.62,205.61,6.292]
[1731222264512,10.88319942,205.62,205.58,15.9611]
[1731222264708,10.88319942,205.6,205.58,15.9611]
[1731222264880,10.88319942,205.61,205.57,4.27651793]
[1731222265082,10.88319942,205.58,205.56,11.3686461]
[1731222266102,10.88319942,205.59,205.56,11.3686461]
[1731222266809,0.12549,205.66,205.56,11.3686461]
[1731222266810,10.88319942,205.58,205.56,11.3686461]
[1731222268179,10.88319942,205.58,205.56,15.61158114]
[1731222268907,10.88319942,205.59,205.56,15.61158114]
[1731222269796,10.88319942,205.57,205.46,6.2999]
[1731222269993,0.12549,205.59,205.46,6.2999]
[1731222270181,0.12549,205.59,205.47,5.07117742]
[1731222270979,10.88319942,205.48,205.47,5.07117742]
[1731222271175,0.12549,205.59,205.53,151.21680058]
[1731222271398,0.12549,205.59,205.46,10.44482989]
[1731222271399,10.88319942,205.54,205.46,10.44482989]
[1731222271599,10.88319942,205.47,205.46,10.44482989]
[1731222272494,10.88319942,205.47,205.46,4.14492989]
[1731222272691,10.88319942,205.47,205.41,6.2999]
[1731222272897,10.88319942,205.43,205.41,6.2999]
[1731222273202,32.64959826,205.5,205.41,11.36679293]
[1731222273405,10.88319942,205.43,205.41,11.36679293]
[1731222273581,32.64959826,205.5,205.41,11.36679293]
[1731222273779,10.88319942,205.43,205.42,23.776884]
[1731222273982,32.64959826,205.5,205.42,23.776884]
[1731222274204,10.88319942,205.43,205.42,23.776884]
[1731222274499,32.64959826,205.5,205.42,23.776884]
[1731222274708,10.88319942,205.43,205.42,23.776884]
[1731222275006,10.88319942,205.43,205.41,11.36679293]
[1731222275212,10.88319942,205.42,205.41,6.2999]
[1731222275578,10.88319942,205.42,205.39,19.55037339]
[1731222275785,10.88319942,205.4,205.39,19.55037339]
[1731222276081,10.88319942,205.43,205.39,19.55037339]
[1731222276598,10.88319942,205.41,205.37,5.06939393]
[1731222276801,10.88319942,205.41,205.36,6.2999]
[1731222277301,0.22549,205.49,205.36,6.2999]
[1731222277512,10.88319942,205.41,205.36,6.2999]
[1731222277901,10.88319942,205.42,205.36,6.2999]
[1731222278207,10.88319942,205.42,205.37,23.776884]
[1731222279308,10.88319942,205.43,205.37,23.776884]
[1731222279881,15.8756,205.51,205.38,10.88319942]
[1731222280188,10.88319942,205.46,205.39,34.66008342]
[1731222280389,10.88319942,205.45,205.39,34.66008342]
[1731222281008,10.88319942,205.45,205.39,23.776884]
[1731222282307,10.88319942,205.42,205.37,23.776884]
[1731222282693,10.88319942,205.42,205.36,23.776884]
[1731222283213,10.88319942,205.42,205.36,34.66008342]
[1731222283598,10.88319942,205.42,205.36,23.776884]
[1731222283913,10.88319942,205.46,205.39,10.88319942]
[1731222284208,10.88319942,205.45,205.38,23.776884]
[1731222284512,10.88319942,205.45,205.38,34.66008342]
[1731222287094,15.7756,205.51,205.42,10.88319942]
[1731222287291,10.88319942,205.5,205.44,10.88319942]
[1731222287699,10.88319942,205.5,205.43,34.66008342]
[1731222287898,10.88319942,205.48,205.43,23.776884]
[1731222288109,10.88319942,205.47,205.42,23.776884]
[1731222289419,17.03649399,205.47,205.42,23.776884]
[1731222290797,17.03649399,205.47,205.4,17.03649399]
[1731222291420,17.03649399,205.46,205.4,21.31505937]
[1731222291839,17.03649399,205.46,205.4,4.27856538]
[1731222292016,17.03649399,205.46,205.37,21.8833]
[1731222292017,17.03649399,205.45,205.38,17.03649399]
[1731222294005,17.03649399,205.45,205.39,17.03649399]
[1731222296429,17.03649399,205.45,205.38,17.03649399]
[1731222297127,17.03649399,205.46,205.39,17.03649399]
[1731222300826,19.6743,205.56,205.5,145.06350601]
[1731222301003,17.03649399,205.51,205.44,17.03649399]
[1731222301506,19.6743,205.56,205.37,15.33623719]
[1731222301507,17.03649399,205.45,205.37,15.33623719]
[1731222301721,17.03649399,205.41,205.37,15.33623719]
[1731222302026,17.03649399,205.42,205.37,15.33623719]
[1731222303111,17.03649399,205.43,205.37,15.33623719]
[1731222304227,17.03649399,205.43,205.37,32.37273118]
[1731222305819,17.03649399,205.43,205.37,15.33623719]
[1731222306541,17.03649399,205.43,205.37,32.37273118]
[1731222308817,17.03649399,205.47,205.41,17.03649399]
[1731222309005,15.6131,205.53,205.37,15.33623719]
[1731222309006,17.03649399,205.49,205.43,17.03649399]
[1731222309214,17.03649399,205.48,205.42,17.03649399]
[1731222309429,10.90171027,205.49,205.43,10.90171027]
[1731222310106,15.6131,205.53,205.46,10.90171027]
[1731222310309,15.6131,205.58,205.49,10.90171027]
[1731222310509,10.90171027,205.54,205.48,10.90171027]
[1731222312532,15.6131,205.58,205.48,10.90171027]
[1731222312826,10.90171027,205.55,205.49,10.90171027]
[1731222313236,10.90171027,205.54,205.41,6.3727]
[1731222313424,10.90171027,205.54,205.48,10.90171027]
[1731222315426,10.90171027,205.54,205.41,6.3727]
[1731222315427,10.90171027,205.52,205.41,6.3727]
[1731222315735,10.90171027,205.51,205.45,10.90171027]
[1731222317340,10.90171027,205.51,205.41,6.3727]
[1731222317516,10.90171027,205.49,205.43,15.75671027]
[1731222318015,10.90171027,205.49,205.42,10.90171027]
[1731222318442,10.90171027,205.49,205.41,6.3727]
[1731222318622,10.90171027,205.49,205.42,15.75671027]
[1731222318817,10.90171027,205.49,205.42,4.855]
[1731222319020,10.90171027,205.49,205.42,10.90171027]
[1731222319240,10.90171027,205.49,205.41,6.3727]
[1731222319418,10.90171027,205.49,205.42,15.75671027]
[1731222320237,10.90171027,205.49,205.43,10.90171027]
[1731222321235,0.22549,205.57,205.45,10.90171027]
[1731222321417,10.90171027,205.52,205.45,10.90171027]
[1731222322430,10.90171027,205.51,205.45,10.90171027]
[1731222324330,10.90171027,205.52,205.46,15.75671027]
[1731222325113,0.12549,205.57,205.47,10.90171027]
[1731222325318,0.12549,205.57,205.41,11.43672486]
[1731222325319,10.90171027,205.54,205.48,10.90171027]
[1731222325937,20.4968,205.63,205.53,10.90171027]
[1731222326140,10.90171027,205.6,205.54,10.90171027]
[1731222326946,10.90171027,205.59,205.53,10.90171027]
[1731222327241,10.90171027,205.59,205.54,4.855]
[1731222327636,20.4968,205.63,205.46,21.7923]
[1731222327637,10.90171027,205.56,205.46,21.7923]
[1731222327932,10.90171027,205.57,205.51,10.90171027]
[1731222328334,10.90171027,205.58,205.52,10.90171027]
[1731222328714,10.90171027,205.58,205.5,4.2162635]
[1731222328923,0.12549,205.62,205.48,10.90171027]
[1731222328924,10.90171027,205.54,205.48,10.90171027]
[1731222330039,10.90171027,205.53,205.48,4.83031757]
[1731222330417,10.90171027,205.53,205.47,15.73202784]
[1731222330844,10.90171027,205.51,205.47,4.83031757]
[1731222331016,10.12291289,205.51,205.46,6.4059]
[1731222333026,10.90171027,205.5,205.46,6.4059]
[1731222333226,10.90171027,205.5,205.45,4.10268154]
[1731222333422,10.90171027,205.48,205.42,15.73247532]
[1731222334140,10.90171027,205.48,205.42,10.90171027]
[1731222338547,10.90171027,205.48,205.42,15.73247532]
[1731222339058,10.90171027,205.51,205.45,10.90171027]
[1731222339443,10.90171027,205.5,205.43,4.83076505]
[1731222339654,10.90171027,205.49,205.43,15.73247532]
[1731222339832,10.90171027,205.49,205.41,31.1428683]
[1731222340134,10.90171027,205.49,205.42,10.90171027]
[1731222340337,10.90171027,205.5,205.44,10.90171027]
[1731222340745,16.56109,205.55,205.45,10.90171027]
[1731222340959,10.90171027,205.51,205.45,15.7350048]
[1731222341337,16.56109,205.55,205.47,10.90171027]
[1731222341539,10.90171027,205.54,205.48,10.90171027]
[1731222341852,27.33731027,205.55,205.48,15.7350048]
[1731222342352,10.90171027,205.54,205.48,10.90171027]
[1731222342549,10.90171027,205.55,205.49,10.90171027]
[1731222342765,15.3231,205.6,205.5,15.73412375]
[1731222342935,10.90171027,205.59,205.53,10.90171027]
[1731222343138,26.22481027,205.6,205.53,10.90171027]
[1731222343337,15.3231,205.66,205.55,10.90171027]
[1731222343540,10.90171027,205.62,205.56,10.90171027]
[1731222344158,10.90171027,205.65,205.58,10.90171027]
[1731222344332,15.3231,205.66,205.59,10.90171027]
[1731222344535,10.90171027,205.67,205.6,10.90171027]
[1731222344743,10.90171027,205.66,205.6,10.90171027]
[1731222345147,10.90171027,205.67,205.61,10.90171027]
[1731222345458,17.00309824,205.67,205.61,17.00309824]
[1731222347454,17.00309824,205.7,205.63,17.00309824]
[1731222347669,17.00309824,205.71,205.64,17.00309824]
[1731222347957,17.00309824,205.68,205.61,17.00309824]
[1731222348154,17.00309824,205.69,205.62,17.00309824]
[1731222348645,17.00309824,205.69,205.63,17.00309824]
[1731222349046,0.12549,205.71,205.65,17.00309824]
[1731222349261,17.00309824,205.7,205.64,17.00309824]
[1731222349455,17.00309824,205.7,205.63,17.00309824]
[1731222350042,0.12549,205.71,205.62,17.00309824]
[1731222350043,17.00309824,205.69,205.62,17.00309824]
[1731222351249,17.00309824,205.69,205.63,17.00309824]
[1731222352063,17.00309824,205.69,205.58,23.0639]
[1731222352064,17.00309824,205.69,205.62,17.00309824]
[1731222352559,15.3231,205.77,205.64,17.00309824]
[1731222352863,17.00309824,205.7,205.64,17.00309824]
[1731222353055,17.00309824,205.69,205.59,23.776884]
[1731222353257,17.00309824,205.69,205.62,17.00309824]
[1731222353452,17.00309824,205.69,205.59,23.776884]
[1731222353768,17.00309824,205.63,205.58,23.0639]
[1731222353968,17.00309824,205.64,205.58,23.0639]
[1731222354376,17.00309824,205.61,205.58,6.4634]
[1731222354542,17.00309824,205.61,205.53,6.4634]
[1731222354746,17.00309824,205.6,205.53,6.4634]
[1731222354959,17.00309824,205.6,205.53,23.46649824]
[1731222355142,17.00309824,205.61,205.54,17.00309824]
[1731222355347,17.00309824,205.61,205.55,17.00309824]
[1731222355955,17.00309824,205.61,205.53,6.4634]
[1731222355956,17.00309824,205.62,205.56,17.00309824]
[1731222356157,0.12549,205.67,205.58,17.00309824]
[1731222356451,0.12549,205.67,205.62,17.00309824]
[1731222356771,9.10770468,205.78,205.54,23.776884]
[1731222356772,5.04650468,205.78,205.76,23.776884]
[1731222356960,17.00309824,205.85,205.77,17.00309824]
[1731222357162,17.00309824,205.8,205.73,17.00309824]
[1731222357353,17.00309824,205.79,205.73,23.776884]
[1731222357759,17.00309824,205.8,205.73,40.77998224]
[1731222359072,17.00309824,205.82,205.75,17.00309824]
[1731222359271,17.00309824,205.83,205.77,23.776884]
[1731222359581,17.00309824,205.84,205.77,40.77998224]
[1731222360472,17.00309824,205.83,205.77,23.776884]
[1731222360782,17.00309824,205.78,205.71,17.00309824]
[1731222360956,17.00309824,205.77,205.7,17.00309824]
[1731222361674,0.12549,205.86,205.67,27.24210313]
[1731222361675,17.00309824,205.76,205.69,17.00309824]
[1731222362066,17.00309824,205.77,205.7,17.00309824]
[1731222362662,17.00309824,205.78,205.71,17.00309824]
[1731222363882,17.00309824,205.78,205.72,23.776884]
[1731222365974,17.00309824,205.77,205.71,17.00309824]
[1731222366279,17.00309824,205.77,205.7,17.00309824]
[1731222367574,0.1,205.88,205.68,23.776884]
[1731222367791,17.00309824,205.83,205.77,40.77998224]
[1731222367965,17.00309824,205.84,205.78,23.776884]
[1731222368693,17.00309824,205.83,205.78,23.776884]
[1731222369562,17.00309824,205.84,205.78,23.776884]
[1731222370380,17.00309824,205.84,205.78,44.89197123]
[1731222370564,17.00309824,205.86,205.8,23.776884]
[1731222370986,17.00309824,205.85,205.8,23.776884]
[1731222371286,17.00309824,205.86,205.8,23.776884]
[1731222371667,17.00309824,205.87,205.81,40.77998224]
[1731222373281,17.00309824,205.88,205.81,40.77998224]
[1731222373589,0.12549,205.9,205.81,23.776884]
[1731222373590,17.00309824,205.87,205.81,23.776884]
[1731222374398,17.00309824,205.88,205.81,17.00309824]
[1731222374987,17.00309824,205.87,205.81,17.00309824]
[1731222375662,17.00309824,205.88,205.81,17.00309824]
[1731222375862,17.00309824,205.88,205.82,17.00309824]
[1731222378189,17.00309824,205.86,205.8,17.00309824]
[1731222378490,17.00309824,205.84,205.78,44.06848723]
[1731222379377,17.00309824,205.82,205.78,10.52908899]
[1731222381288,17.00309824,205.81,205.78,4.11198899]
[1731222381465,17.00309824,205.81,205.73,22.572]
[1731222381466,17.00309824,205.81,205.75,17.00309824]
[1731222382185,17.00309824,205.82,205.76,17.00309824]
[1731222383079,17.00309824,205.83,205.77,17.00309824]
[1731222383289,0.12549,205.87,205.78,17.00309824]
[1731222383494,17.00309824,205.85,205.79,17.00309824]
[1731222383791,0.12549,205.9,205.79,17.00309824]
[1731222383969,17.00309824,205.85,205.79,17.00309824]
[1731222384165,17.00309824,205.86,205.79,17.00309824]
[1731222385694,17.00309824,205.86,205.8,17.00309824]
[1731222385897,17.00309824,205.86,205.79,17.00309824]
[1731222386985,17.00309824,205.86,205.78,17.00309824]
[1731222387991,17.00309824,205.86,205.79,17.00309824]
[1731222388677,17.00309824,205.87,205.8,17.00309824]
[1731222389075,0.12549,205.86,205.79,17.00309824]
[1731222391198,17.00309824,205.86,205.79,17.00309824]
[1731222391386,0.12549,205.86,205.79,17.00309824]
[1731222394084,17.00309824,205.87,205.79,17.00309824]
[1731222394288,17.00309824,205.9,205.83,17.00309824]
[1731222396277,17.00309824,205.9,205.76,4.855]
[1731222396278,17.00309824,205.9,205.82,17.00309824]
[1731222396472,17.00309824,205.89,205.81,17.00309824]
[1731222396685,17.00309824,205.88,205.81,17.00309824]
[1731222397098,17.00309824,205.87,205.8,17.00309824]
[1731222397299,17.00309824,205.88,205.81,17.00309824]
[1731222397891,17.12858824,205.87,205.8,17.00309824]
[1731222398107,17.00309824,205.85,205.78,17.00309824]
[1731222399982,17.00309824,205.86,205.79,17.00309824]
[1731222400486,17.00309824,205.84,205.78,17.00309824]
[1731222400689,17.00309824,205.85,205.78,17.00309824]
[1731222401486,17.00309824,205.86,205.79,17.00309824]
[1731222402589,17.00309824,205.85,205.78,17.00309824]
[1731222402989,17.00309824,205.86,205.79,17.00309824]
[1731222404608,17.00309824,205.86,205.74,27.90212607]
[1731222404785,17.00309824,205.85,205.78,17.00309824]
[1731222404986,17.00309824,205.86,205.78,17.00309824]